bitfinex/quotes_BTCUSD_20251117
["timestamp","ask_amount","ask_price","bid_price","bid_amount"]
[1763399204580,0.10416178,94237.0,94235.0,0.01706]
[1763399204795,0.323,94250.0,94235.0,0.01706]
[1763399205006,0.10416178,94236.0,94235.0,0.01706]
[1763399205445,0.323,94235.0,94212.0,0.05252]
[1763399205658,0.34487607,94235.0,94212.0,0.05252]
[1763399205872,0.323,94231.0,94212.0,0.05252]
[1763399206074,0.323,94231.0,94216.0,0.0171]
[1763399206590,2.323,94231.0,94216.0,0.0171]
[1763399206792,2.323,94231.0,94212.0,0.01726]
[1763399207497,2.3228,94231.0,94215.0,0.0171]
[1763399207811,2.3228,94231.0,94230.0,0.0002]
[1763399207981,2.3228,94231.0,94230.0,0.00092643]
[1763399208183,0.10416178,94236.0,94230.0,0.00092643]
[1763399208392,2.0,94235.0,94230.0,0.0002]
[1763399209803,0.21224065,94233.0,94230.0,0.0002]
[1763399209982,2.0,94235.0,94230.0,0.0002]
[1763399210193,2.0,94235.0,94232.0,0.00067056]
[1763399210428,2.0,94235.0,94230.0,0.0002]
[1763399210642,2.0,94235.0,94234.0,0.00061469]
[1763399211744,2.323,94235.0,94234.0,0.00061469]
[1763399212991,2.34290699,94235.0,94234.0,0.00061469]
[1763399213355,2.38632573,94235.0,94234.0,0.00061469]
[1763399213756,2.43693136,94235.0,94234.0,0.00061469]
[1763399213873,2.4468841,94235.0,94234.0,0.00061469]
[1763399214076,0.323,94211.0,94190.0,0.0171]
[1763399214296,0.42716178,94201.0,94190.0,0.0171]
[1763399215246,0.42729332,94201.0,94199.0,0.0171]
[1763399215458,0.35297092,94201.0,94200.0,0.05972]
[1763399215658,0.02002446,94201.0,94200.0,0.05972]
[1763399217159,0.00013154,94201.0,94200.0,0.05972]
[1763399217402,0.00013154,94201.0,94200.0,0.08095142]
[1763399217608,0.00013154,94201.0,94200.0,0.074336]
[1763399218558,0.00013154,94201.0,94200.0,0.08095142]
[1763399219634,0.00013154,94201.0,94200.0,0.08075142]
[1763399220363,0.00013154,94201.0,94200.0,0.05952]
[1763399220563,0.00013154,94201.0,94200.0,0.07604137]
[1763399221019,0.00013154,94201.0,94200.0,0.06993338]
[1763399221232,0.00013154,94201.0,94200.0,0.05952]
[1763399221436,0.32293154,94236.0,94200.0,0.08075142]
[1763399221644,0.05265443,94235.0,94201.0,0.03409]
[1763399221851,0.02978229,94234.0,94214.0,0.01576]
[1763399222067,0.02978229,94233.0,94214.0,0.01576]
[1763399222273,0.01985486,94232.0,94215.0,0.05531804]
[1763399222484,0.01985486,94231.0,94215.0,0.05531804]
[1763399222691,0.01985486,94230.0,94216.0,0.03409]
[1763399222864,0.01985486,94229.0,94217.0,0.06464633]
[1763399223096,0.00013191,94236.0,94235.0,0.03725]
[1763399223648,0.00013191,94236.0,94235.0,0.07134]
[1763399224967,0.36024621,94271.0,94235.0,0.11475874]
[1763399225169,2.32313188,94271.0,94270.0,0.01576]
[1763399225377,2.3529209,94271.0,94270.0,0.01576]
[1763399225599,0.0299209,94271.0,94270.0,0.07134]
[1763399226923,0.0299209,94271.0,94270.0,0.07114]
[1763399227350,0.01999123,94271.0,94270.0,0.07114]
[1763399228624,0.01999123,94271.0,94270.0,0.09235565]
[1763399228823,0.03807676,94303.0,94271.0,0.04341874]
[1763399229031,0.00993031,94302.0,94295.0,0.02149]
[1763399229245,0.00993031,94302.0,94284.0,0.01576]
[1763399229246,0.00993031,94301.0,94284.0,0.01576]
[1763399229467,0.00993031,94301.0,94285.0,0.03409]
[1763399229468,0.00993031,94300.0,94285.0,0.03409]
[1763399229685,0.00993031,94299.0,94285.0,0.03409]
[1763399229935,0.00993031,94298.0,94285.0,0.03409]
[1763399230148,0.00993031,94298.0,94284.0,0.01522]
[1763399230149,0.10416178,94286.0,94270.0,0.01556]
[1763399230366,0.33293031,94285.0,94270.0,0.01556]
[1763399230597,0.323,94278.0,94270.0,0.01556]
[1763399230811,0.00993031,94284.0,94248.0,0.01576]
[1763399230812,0.10416178,94271.0,94257.0,0.01576]
[1763399231251,0.10416178,94270.0,94258.0,0.03409]
[1763399231466,0.323,94269.0,94257.0,0.01576]
[1763399232086,0.323,94269.0,94257.0,0.01589188]
[1763399232899,0.323,94269.0,94268.0,0.01576]
[1763399233108,0.323,94277.0,94268.0,0.01576]
[1763399233316,0.323,94270.0,94268.0,0.01576]
[1763399233478,0.323,94270.0,94258.0,0.02121835]
[1763399233883,0.10416178,94271.0,94257.0,0.00013188]
[1763399234097,0.21218234,94259.0,94257.0,0.00013188]
[1763399234300,0.10416178,94271.0,94257.0,0.00013188]
[1763399234509,0.31628286,94286.0,94257.0,0.00013188]
[1763399234510,2.0,94270.0,94257.0,0.00013188]
[1763399234710,0.10416178,94269.0,94258.0,0.03409]
[1763399234927,2.0,94268.0,94257.0,0.00013188]
[1763399235330,0.10416178,94269.0,94257.0,0.00013188]
[1763399235537,0.10416178,94269.0,94268.0,0.01576]
[1763399235946,0.10416178,94269.0,94257.0,0.00013188]
[1763399236152,0.10416178,94261.0,94257.0,0.00013188]
[1763399237215,0.323,94260.0,94257.0,0.00013188]
[1763399237941,0.323,94260.0,94259.0,0.02119]
[1763399238184,0.323,94260.0,94257.0,0.00013188]
[1763399238404,2.21216282,94268.0,94257.0,0.00013188]
[1763399238607,2.0,94266.0,94257.0,0.00013188]
[1763399238838,0.323,94261.0,94257.0,0.00013188]
[1763399240046,0.323,94264.0,94257.0,0.00013188]
[1763399240854,2.0,94268.0,94257.0,0.00013188]
[1763399241926,0.21216371,94267.0,94257.0,0.00013188]
[1763399242145,2.0,94267.0,94257.0,0.00013188]
[1763399242337,2.0,94268.0,94257.0,0.00013188]
[1763399243446,0.21216925,94265.0,94257.0,0.00013188]
[1763399243697,2.0,94274.0,94268.0,0.02119]
[1763399243916,0.10416178,94271.0,94269.0,0.01662]
[1763399244131,2.0,94279.0,94269.0,0.01662]
[1763399244338,0.5,94285.0,94269.0,0.01662]
[1763399244339,0.323,94278.0,94270.0,0.02119]
[1763399244542,0.323,94276.0,94270.0,0.02119]
[1763399244790,0.42716178,94271.0,94270.0,0.02119]
[1763399245473,0.323,94271.0,94270.0,0.02119]
[1763399245715,0.323,94271.0,94270.0,0.05417]
[1763399245932,0.323,94271.0,94270.0,0.02119]
[1763399246581,0.323,94281.0,94269.0,0.01662]
[1763399246795,0.10416178,94271.0,94269.0,0.01662]
[1763399247251,0.323,94270.0,94269.0,0.01662]
[1763399248154,0.323,94270.0,94257.0,0.00013188]
[1763399248377,0.04271618,94270.0,94257.0,0.00013188]
[1763399248591,0.10416178,94271.0,94257.0,0.00013188]
[1763399248811,2.0,94269.0,94257.0,0.00013188]
[1763399249274,0.21216354,94267.0,94257.0,0.00013188]
[1763399249515,2.0,94270.0,94257.0,0.00013188]
[1763399249747,2.0,94268.0,94257.0,0.00013188]
[1763399249968,2.0,94270.0,94257.0,0.00013188]
[1763399250442,2.0,94282.0,94269.0,0.02252]
[1763399250650,0.10416178,94270.0,94258.0,0.03287]
[1763399251102,2.0,94284.0,94269.0,0.02252]
[1763399251329,2.0,94282.0,94269.0,0.02252]
[1763399251537,0.323,94284.0,94281.0,0.03978]
[1763399251741,2.0,94282.0,94281.0,0.03978]
[1763399251938,0.01986673,94282.0,94281.0,0.03978]
[1763399252347,0.01986673,94282.0,94276.0,0.01726]
[1763399252561,0.01986673,94281.0,94276.0,0.01726]
[1763399252763,0.323,94279.0,94265.0,0.01726]
[1763399252969,0.01986673,94278.0,94265.0,0.01726]
[1763399253168,0.01986673,94277.0,94265.0,0.01726]
[1763399253398,0.01986673,94276.0,94265.0,0.05013]
[1763399253610,0.01986673,94275.0,94265.0,0.05013]
[1763399253816,0.01986673,94274.0,94266.0,0.03287]
[1763399254016,0.01986673,94273.0,94267.0,0.02121633]
[1763399254348,0.01986673,94272.0,94267.0,0.02121633]
[1763399254552,0.01986673,94271.0,94267.0,0.02121633]
[1763399254755,0.323,94285.0,94267.0,0.02121633]
[1763399254756,0.01986673,94270.0,94267.0,0.02121633]
[1763399254962,0.323,94283.0,94270.0,0.02252]
[1763399255212,0.01989944,94282.0,94270.0,0.02252]
[1763399255384,0.01989944,94281.0,94270.0,0.02252]
[1763399255589,0.01989944,94280.0,94265.0,0.01726]
[1763399255790,0.01989944,94279.0,94265.0,0.01726]
[1763399255991,0.01989944,94278.0,94265.0,0.01726]
[1763399256193,0.21213465,94280.0,94265.0,0.01726]
[1763399256194,0.10416178,94271.0,94265.0,0.01726]
[1763399256392,0.10416178,94286.0,94265.0,0.01726]
[1763399256393,0.01989944,94270.0,94265.0,0.01726]
[1763399256613,0.01989944,94269.0,94265.0,0.01726]
[1763399256819,0.01989944,94268.0,94265.0,0.01726]
[1763399257020,0.01989944,94267.0,94266.0,0.03287]
[1763399257222,2.0,94284.0,94266.0,0.03287]
[1763399257428,0.10416178,94271.0,94257.0,0.00013188]
[1763399257639,0.12406122,94270.0,94257.0,0.03300188]
[1763399257835,0.01989944,94269.0,94257.0,0.03300188]
[1763399258171,0.01989944,94268.0,94257.0,0.03300188]
[1763399258310,0.01989944,94267.0,94257.0,0.00013188]
[1763399258518,0.01989944,94266.0,94257.0,0.00013188]
[1763399258744,0.323,94269.0,94257.0,0.00013188]
[1763399258745,0.01989944,94265.0,94257.0,0.00013188]
[1763399258966,0.01989944,94264.0,94257.0,0.00013188]
[1763399259155,0.01989944,94263.0,94257.0,0.00013188]
[1763399259356,0.01989944,94262.0,94257.0,0.00013188]
[1763399259554,0.323,94265.0,94257.0,0.00013188]
[1763399259555,0.01989944,94261.0,94257.0,0.00013188]
[1763399259889,0.01989944,94260.0,94257.0,0.00013188]
[1763399260203,0.01989944,94259.0,94257.0,0.00013188]
[1763399260416,0.01989944,94258.0,94257.0,0.00013188]
[1763399260626,0.34289944,94258.0,94257.0,0.00013188]
[1763399260839,2.39840753,94258.0,94257.0,0.00013188]
[1763399261051,0.323,94238.0,94237.0,0.02804849]
[1763399261255,0.10416178,94251.0,94231.0,0.02804849]
[1763399261256,0.323,94232.0,94231.0,0.02804849]
[1763399261458,0.323,94232.0,94231.0,0.00013191]
[1763399261680,2.323,94232.0,94231.0,0.00013191]
[1763399262098,2.4465988,94232.0,94231.0,0.00013191]
[1763399262512,2.34292942,94232.0,94231.0,0.00013191]
[1763399263350,2.4470912,94232.0,94231.0,0.00013191]
[1763399264403,2.5699014,94232.0,94231.0,0.00013191]
[1763399265188,2.38805898,94232.0,94231.0,0.00013191]
[1763399265435,2.2469014,94232.0,94231.0,0.00013191]
[1763399265642,2.35057078,94232.0,94231.0,0.00013191]
[1763399267743,2.37861927,94232.0,94231.0,0.00013191]
[1763399268746,2.37861927,94232.0,94200.0,0.0002]
[1763399268747,0.04341874,94227.0,94200.0,0.0002]
[1763399268956,0.00999999,94230.0,94200.0,0.0002]
[1763399268957,0.31647375,94201.0,94200.0,0.0002]
[1763399269156,0.31660548,94201.0,94200.0,0.0002]
[1763399269359,2.31660548,94201.0,94200.0,0.0002]
[1763399269562,2.35976175,94201.0,94200.0,0.0002]
[1763399269763,2.46065584,94201.0,94200.0,0.0002]
[1763399271252,2.14744978,94201.0,94200.0,0.0002]
[1763399271902,0.00013173,94201.0,94200.0,0.02272]
[1763399272105,0.00013173,94201.0,94200.0,0.05559]
[1763399272944,0.00013173,94201.0,94200.0,0.07661513]
[1763399273377,0.01080616,94236.0,94201.0,0.04341874]
[1763399273582,0.01080616,94236.0,94226.0,0.02252]
[1763399273583,0.10416178,94233.0,94226.0,0.02252]
[1763399273783,0.10416178,94233.0,94226.0,0.022291]
[1763399273991,0.10416178,94233.0,94214.0,0.01726]
[1763399273992,0.10416178,94233.0,94232.0,0.02252]
[1763399274245,0.00013188,94236.0,94232.0,0.02252]
[1763399274490,0.10416178,94233.0,94232.0,0.02252]
[1763399274694,0.00013188,94236.0,94227.0,0.01726]
[1763399274911,0.00013188,94236.0,94235.0,0.02252]
[1763399275125,0.00013188,94236.0,94235.0,0.05539]
[1763399276812,0.00013188,94236.0,94235.0,0.02252]
[1763399277015,0.00013188,94236.0,94235.0,0.05539]
[1763399278084,0.00013188,94236.0,94227.0,0.01726]
[1763399278306,0.10416178,94234.0,94227.0,0.01726]
[1763399280039,0.10416178,94234.0,94227.0,0.04844]
[1763399280542,0.10416178,94234.0,94221.0,0.01583]
[1763399281103,0.323,94235.0,94233.0,0.02221]
[1763399281730,0.323,94235.0,94222.0,0.03118]
[1763399281731,0.00013188,94236.0,94234.0,0.05339]
[1763399281945,0.00013188,94236.0,94235.0,0.02221]
[1763399282365,0.00013188,94236.0,94235.0,0.05339]
[1763399283495,0.00013188,94236.0,94223.0,0.01320488]
[1763399283735,0.00013188,94236.0,94221.0,0.01583]
[1763399283736,0.10416178,94231.0,94221.0,0.01583]
[1763399284173,0.10429366,94236.0,94221.0,0.01583]
[1763399284398,0.2122427,94232.0,94221.0,0.01583]
[1763399284617,0.10429366,94236.0,94221.0,0.01583]
[1763399285482,2.0,94234.0,94221.0,0.01583]
[1763399285707,2.0,94235.0,94222.0,0.03118]
[1763399285920,0.00013188,94236.0,94235.0,0.02221]
[1763399286356,0.00013188,94236.0,94235.0,0.05339]
[1763399287745,0.00013188,94236.0,94221.0,0.01583]
[1763399287746,0.00013188,94236.0,94226.0,0.03118]
[1763399287964,0.00013188,94236.0,94235.0,0.02221]
[1763399288177,0.00013188,94236.0,94235.0,0.05339]
[1763399292492,0.00013188,94236.0,94235.0,0.02221]
[1763399292719,0.00013188,94236.0,94235.0,0.05339]
[1763399293200,0.00013188,94236.0,94225.0,0.03118]
[1763399293413,0.00013188,94236.0,94235.0,0.02221]
[1763399293779,0.00013188,94236.0,94235.0,0.05339]
[1763399297449,0.00013188,94236.0,94235.0,0.07169751]
[1763399297987,0.00013188,94236.0,94235.0,0.05339]
[1763399298202,0.00013188,94236.0,94235.0,0.11803227]
[1763399298419,0.00013188,94236.0,94235.0,0.14610437]
[1763399298620,0.01103014,94275.0,94236.0,0.04341874]
[1763399298621,2.0,94274.0,94236.0,0.04341874]
[1763399298820,0.10416178,94270.0,94239.0,0.02817089]
[1763399299025,0.01989799,94269.0,94240.0,0.06464115]
[1763399299237,0.01989799,94268.0,94240.0,0.09613115]
[1763399299440,0.00013188,94274.0,94267.0,0.0161]
[1763399299663,2.0,94272.0,94267.0,0.0161]
[1763399299815,2.0,94270.0,94267.0,0.0161]
[1763399300019,0.01989787,94269.0,94267.0,0.0161]
[1763399300217,0.01989787,94268.0,94267.0,0.0161]
[1763399300426,0.01989787,94268.0,94259.0,0.0161]
[1763399300788,0.12405965,94267.0,94259.0,0.0161]
[1763399300964,0.01989787,94266.0,94259.0,0.04759]
[1763399301175,0.12405965,94265.0,94259.0,0.04759]
[1763399301375,0.01989787,94264.0,94259.0,0.04759]
[1763399301576,0.01989787,94264.0,94259.0,0.0161]
[1763399302074,0.0199096,94263.0,94259.0,0.0161]
[1763399302282,0.0199096,94262.0,94259.0,0.0161]
[1763399302495,0.0199096,94261.0,94259.0,0.0161]
[1763399302712,0.0199096,94260.0,94259.0,0.0161]
[1763399302981,0.0199096,94264.0,94259.0,0.0161]
[1763399303190,0.0199096,94263.0,94248.0,0.0161]
[1763399303402,0.0199096,94262.0,94257.0,0.0161]
[1763399303619,0.0199096,94261.0,94257.0,0.0161]
[1763399303881,0.323,94272.0,94258.0,0.03149]
[1763399304078,2.01991141,94271.0,94258.0,0.03149]
[1763399304230,0.01991141,94270.0,94258.0,0.03149]
[1763399304429,0.01991141,94269.0,94259.0,0.02121813]
[1763399304632,0.12407319,94268.0,94259.0,0.02121813]
[1763399304809,0.01991141,94267.0,94260.0,0.03149]
[1763399305023,0.00013188,94274.0,94260.0,0.03149]
[1763399305024,0.01991141,94266.0,94261.0,0.02121768]
[1763399305203,0.00013188,94274.0,94261.0,0.02121768]
[1763399305412,0.01990497,94273.0,94262.0,0.03149]
[1763399305614,0.01990497,94272.0,94262.0,0.03149]
[1763399305864,0.00013188,94274.0,94273.0,0.02036]
[1763399306081,0.00013188,94274.0,94273.0,0.05185]
[1763399307146,0.00013188,94274.0,94257.0,0.0161]
[1763399307147,0.00013188,94274.0,94263.0,0.03149]
[1763399307363,0.10416178,94272.0,94257.0,0.0161]
[1763399307545,0.01988929,94271.0,94257.0,0.0161]
[1763399307929,0.01988929,94271.0,94258.0,0.03149]
[1763399310192,0.34288929,94271.0,94258.0,0.03149]
[1763399310538,0.01988929,94270.0,94257.0,0.0161]
[1763399310751,0.10416178,94272.0,94248.0,0.0161]
[1763399310957,0.10416178,94257.0,94248.0,0.0161]
[1763399311160,2.0,94271.0,94249.0,0.03023]
[1763399311333,0.10416178,94257.0,94256.0,0.02178]
[1763399311691,2.0,94271.0,94256.0,0.05201]
[1763399311918,2.0,94271.0,94257.0,0.01531]
[1763399312118,2.0,94271.0,94270.0,0.02178]
[1763399312317,2.0,94271.0,94257.0,0.04554]
[1763399312318,2.0,94271.0,94261.0,0.03023]
[1763399315222,2.0,94273.0,94270.0,0.02178]
[1763399315428,2.0,94270.0,94261.0,0.03023]
[1763399315851,2.0,94270.0,94269.0,0.02178]
[1763399316103,0.00013188,94274.0,94269.0,0.02178]
[1763399316316,0.10416178,94271.0,94270.0,0.02178]
[1763399316642,0.10416178,94271.0,94263.0,0.03023]
[1763399318378,0.10416178,94271.0,94270.0,0.02178]
[1763399318586,2.0,94273.0,94258.0,0.03023]
[1763399318959,0.10416178,94271.0,94258.0,0.03023]
[1763399319340,2.0,94270.0,94258.0,0.03023]
[1763399319699,2.0,94270.0,94269.0,0.02178]
[1763399320887,0.10416178,94271.0,94269.0,0.05201]
[1763399321096,0.10416178,94271.0,94270.0,0.02178]
[1763399321700,0.10416178,94271.0,94257.0,0.01531]
[1763399321942,2.0,94270.0,94257.0,0.01531]
[1763399322344,2.0,94270.0,94269.0,0.02178]
[1763399322765,2.0,94270.0,94261.0,0.01531]
[1763399323179,2.0,94270.0,94248.0,0.04429826]
[1763399323591,0.10416178,94256.0,94248.0,0.04429826]
[1763399324705,0.10416178,94271.0,94248.0,0.04429826]
[1763399324706,0.10416178,94271.0,94255.0,0.02178]
[1763399325073,0.10416178,94271.0,94270.0,0.01531]
[1763399325285,0.10416178,94271.0,94256.0,0.0212188]
[1763399325484,0.10416178,94271.0,94256.0,0.0514488]
[1763399325700,0.10416178,94271.0,94270.0,0.03709]
[1763399325903,0.00013188,94274.0,94270.0,0.03709]
[1763399326102,0.10416178,94271.0,94270.0,0.01531]
[1763399326304,0.10416178,94271.0,94258.0,0.02121835]
[1763399326507,0.10416178,94271.0,94270.0,0.02178]
[1763399326708,0.00013188,94274.0,94270.0,0.02178]
[1763399326919,0.10416178,94271.0,94260.0,0.01531]
[1763399327341,2.0,94291.0,94273.0,0.02178]
[1763399327546,2.0,94289.0,94285.0,0.02178]
[1763399327775,2.0,94285.0,94262.0,0.1479]
[1763399327992,2.0,94283.0,94262.0,0.1479]
[1763399328258,0.01991931,94282.0,94263.0,0.03023]
[1763399328467,0.10416178,94271.0,94262.0,0.1479]
[1763399328672,0.10416178,94271.0,94263.0,0.03023]
[1763399328878,0.10416178,94271.0,94270.0,0.02178]
[1763399329083,0.10416178,94286.0,94270.0,0.02178]
[1763399329290,2.10416178,94286.0,94285.0,0.03709]
[1763399329512,2.12407954,94286.0,94285.0,0.03709]
[1763399329721,2.0,94285.0,94279.0,0.01531]
[1763399329933,0.01991776,94284.0,94279.0,0.01531]
[1763399330129,0.10416178,94286.0,94285.0,0.02178]
[1763399330130,2.10416178,94286.0,94285.0,0.02178]
[1763399330365,0.07893439,94302.0,94285.0,0.02178]
[1763399330565,0.07893439,94302.0,94290.0,0.03709]
[1763399330777,0.12407327,94301.0,94290.0,0.03709]
[1763399330992,0.01991149,94300.0,94290.0,0.06732]
[1763399331256,0.10416178,94301.0,94290.0,0.06732]
[1763399331458,0.01100199,94292.0,94290.0,0.06732]
[1763399332739,0.10416178,94301.0,94290.0,0.06732]
[1763399333766,0.5,94314.0,94290.0,0.06732]
[1763399333970,2.0,94296.0,94291.0,0.03023]
[1763399334169,2.0,94296.0,94295.0,0.02178]
[1763399334584,2.0,94296.0,94295.0,0.05201]
[1763399334760,2.0,94296.0,94290.0,0.01531]
[1763399334970,2.0,94296.0,94295.0,0.02178]
[1763399335171,2.0,94313.0,94295.0,0.02178]
[1763399335371,2.0,94313.0,94290.0,0.01531]
[1763399335372,2.10416178,94297.0,94296.0,0.05201]
[1763399336700,2.0,94313.0,94296.0,0.05201]
[1763399336903,2.0,94311.0,94297.0,0.03023]
[1763399337104,0.01987659,94310.0,94297.0,0.03023]
[1763399337261,2.0,94308.0,94297.0,0.03023]
[1763399337466,2.0,94306.0,94297.0,0.03023]
[1763399337681,0.00013178,94314.0,94298.0,0.02120935]
[1763399337878,0.01986907,94313.0,94299.0,0.02120913]
[1763399338081,0.00013178,94314.0,94313.0,0.03709]
[1763399338495,0.00013178,94314.0,94313.0,0.06732]
[1763399338744,0.0002,94330.0,94313.0,0.06732]
[1763399338971,0.0002,94330.0,94329.0,0.03709]
[1763399339302,0.02005682,94330.0,94329.0,0.03709]
[1763399339526,0.02005682,94330.0,94329.0,0.06732]
[1763399340010,0.0002,94330.0,94329.0,0.06732]
[1763399340233,0.0002,94360.0,94330.0,0.04341874]
[1763399340234,2.0,94359.0,94330.0,0.04341874]
[1763399340448,0.323,94354.0,94350.0,0.01483996]
[1763399340699,0.0297609,94353.0,94350.0,0.01483996]
[1763399340905,0.0198406,94352.0,94350.0,0.01483996]
[1763399341118,0.0198406,94351.0,94350.0,0.01483996]
[1763399341353,0.0198406,94351.0,94350.0,0.04674996]
[1763399341564,2.0,94369.0,94350.0,0.06738996]
[1763399341773,0.10416178,94359.0,94350.0,0.06738996]
[1763399341982,0.00991218,94358.0,94350.0,0.06738996]
[1763399342192,0.00991218,94357.0,94350.0,0.06738996]
[1763399342417,0.00991218,94357.0,94350.0,0.01483996]
[1763399342681,0.10416178,94359.0,94350.0,0.01483996]
[1763399342884,0.33290566,94358.0,94350.0,0.01483996]
[1763399343107,0.00990566,94357.0,94350.0,0.04674996]
[1763399343331,0.323,94358.0,94351.0,0.02119744]
[1763399343582,0.0002,94380.0,94357.0,0.02064]
[1763399343805,0.0002,94380.0,94369.0,0.03575]
[1763399344261,0.0002,94380.0,94365.0,0.01511]
[1763399344478,0.0002,94380.0,94350.0,0.01483996]
[1763399344479,0.00989106,94369.0,94359.0,0.01511]
[1763399344696,0.10416178,94369.0,94338.0,0.03191]
[1763399344914,0.10416178,94354.0,94343.0,0.01511]
[1763399345614,2.0,94353.0,94338.0,0.00013175]
[1763399345823,0.10416178,94354.0,94338.0,0.00013175]
[1763399345824,0.10416178,94339.0,94338.0,0.00013175]
[1763399346715,2.0,94353.0,94338.0,0.00013175]
[1763399346927,2.0,94353.0,94339.0,0.01511]
[1763399347642,2.0,94368.0,94352.0,0.02064]
[1763399347858,0.0002,94370.0,94368.0,0.03575]
[1763399348070,0.0002,94370.0,94369.0,0.02064]
[1763399348295,0.0002,94370.0,94369.0,0.05255]
[1763399348518,0.0002,94370.0,94369.0,0.02064]
[1763399348735,0.0002,94370.0,94369.0,0.05255]
[1763399349563,0.0002,94370.0,94369.0,0.02064]
[1763399350099,0.0002,94370.0,94369.0,0.05255]
[1763399350747,0.0002,94370.0,94369.0,0.11716214]
[1763399350964,0.0002,94380.0,94370.0,0.04341874]
[1763399351178,0.0002,94390.0,94379.0,0.02064]
[1763399351389,0.00063899,94390.0,94389.0,0.02064]
[1763399351602,0.00063899,94390.0,94389.0,0.0737389]
[1763399351811,0.00063899,94390.0,94389.0,0.11715764]
[1763399352435,0.00063899,94390.0,94389.0,0.05255]
[1763399353276,0.323,94416.0,94389.0,0.06553826]
[1763399353492,0.00346579,94405.0,94404.0,0.03575]
[1763399353728,0.0231978,94405.0,94404.0,0.03575]
[1763399353971,0.0231978,94405.0,94404.0,0.06766]
[1763399354393,0.00346579,94405.0,94404.0,0.06766]
[1763399355611,0.02318815,94405.0,94404.0,0.06766]
[1763399355831,0.02318815,94405.0,94404.0,0.01511]
[1763399356047,0.02318815,94405.0,94404.0,0.06766]
[1763399356286,0.10416178,94440.0,94404.0,0.06766]
[1763399356539,2.0001316,94440.0,94439.0,0.02064]
[1763399356751,0.0001316,94440.0,94439.0,0.02064]
[1763399356964,0.0001316,94440.0,94424.0,0.04702]
[1763399357176,0.10416178,94438.0,94424.0,0.04702]
[1763399357389,0.10416178,94438.0,94424.0,0.01511]
[1763399358285,0.323,94434.0,94424.0,0.01511]
[1763399359162,0.323,94434.0,94433.0,0.01531]
[1763399359388,0.003,94438.0,94433.0,0.03642]
[1763399359613,0.003,94438.0,94434.0,0.05176881]
[1763399359824,0.0011316,94440.0,94437.0,0.02111]
[1763399360034,0.0001316,94440.0,94439.0,0.0487]
[1763399360266,0.0001316,94440.0,94439.0,0.0477]
[1763399362249,0.00110609,94440.0,94439.0,0.0477]
[1763399364211,0.00110609,94440.0,94439.0,0.0517]
[1763399364426,0.00110609,94440.0,94433.0,0.01531]
[1763399364642,0.0001316,94440.0,94433.0,0.01531]
[1763399365068,0.0001316,94440.0,94439.0,0.02111]
[1763399365502,0.0001316,94440.0,94439.0,0.0517]
[1763399365929,0.0001316,94440.0,94439.0,0.02111]
[1763399366138,0.0001316,94440.0,94433.0,0.01531]
[1763399366360,0.323,94435.0,94424.0,0.01511]
[1763399366599,0.323,94423.0,94411.0,0.01531]
[1763399366802,0.323,94409.0,94390.0,0.03059]
[1763399367033,0.323,94406.0,94390.0,0.03059]
[1763399367264,0.323,94397.0,94393.0,0.01531]
[1763399367495,0.323,94406.0,94383.0,0.01531]
[1763399367716,0.323,94391.0,94383.0,0.01531]
[1763399367950,0.323,94389.0,94383.0,0.01531]
[1763399368166,0.323,94389.0,94383.0,0.01544164]
[1763399368814,0.323,94389.0,94388.0,0.02111]
[1763399369023,0.323,94402.0,94388.0,0.02111]
[1763399369245,0.10416178,94389.0,94388.0,0.02111]
[1763399369925,2.0,94406.0,94388.0,0.05109]
[1763399370130,0.001,94389.0,94388.0,0.05109]
[1763399370345,0.10416178,94407.0,94388.0,0.05109]
[1763399370554,0.10416178,94390.0,94388.0,0.05109]
[1763399370773,0.001,94389.0,94383.0,0.01544164]
[1763399372069,0.001,94389.0,94388.0,0.02026]
[1763399372271,2.0,94406.0,94388.0,0.02026]
[1763399372490,0.001,94390.0,94388.0,0.05024]
[1763399372700,0.323,94391.0,94388.0,0.05024]
[1763399372911,0.323,94391.0,94389.0,0.02026]
[1763399373154,2.0,94406.0,94389.0,0.02998]
[1763399373383,2.0,94406.0,94390.0,0.02026]
[1763399373592,0.323,94405.0,94390.0,0.02026]
[1763399373829,0.323,94401.0,94390.0,0.01926]
[1763399374045,0.323,94391.0,94383.0,0.00013164]
[1763399374938,0.10416178,94392.0,94383.0,0.00013164]
[1763399375361,0.323,94391.0,94383.0,0.00013164]
[1763399375995,0.324,94391.0,94383.0,0.00013164]
[1763399376444,0.323,94391.0,94383.0,0.00013164]
[1763399378151,0.21189422,94387.0,94383.0,0.00013164]
[1763399378361,0.2118846,94391.0,94383.0,0.00013164]
[1763399378569,0.10416178,94392.0,94383.0,0.00013164]
[1763399379201,0.10416178,94392.0,94391.0,0.01518]
[1763399379618,0.10516178,94392.0,94391.0,0.03544]
[1763399379830,0.42816178,94392.0,94391.0,0.03544]
[1763399380042,0.42816178,94392.0,94391.0,0.01518]
[1763399380458,0.42716178,94392.0,94391.0,0.01518]
[1763399380906,0.42716178,94392.0,94391.0,0.03544]
[1763399381340,0.323,94392.0,94391.0,0.06542]
[1763399381552,0.323,94392.0,94391.0,0.03544]
[1763399381771,0.324,94392.0,94391.0,0.01518]
[1763399381990,0.323,94391.0,94384.0,0.01518]
[1763399382206,0.323,94391.0,94385.0,0.0511698]
[1763399382457,0.001,94392.0,94390.0,0.02026]
[1763399382881,0.001,94392.0,94391.0,0.05024]
[1763399383096,0.323,94412.0,94391.0,0.05024]
[1763399383343,0.10416178,94405.0,94391.0,0.02026]
[1763399384453,0.323,94404.0,94384.0,0.01518]
[1763399384688,0.323,94402.0,94384.0,0.01518]
[1763399384898,0.53485651,94404.0,94384.0,0.01518]
[1763399384899,0.323,94403.0,94384.0,0.01518]
[1763399385109,0.001,94392.0,94384.0,0.01518]
[1763399385318,0.323,94403.0,94384.0,0.01518]
[1763399386156,0.323,94399.0,94384.0,0.01518]
[1763399386986,0.001,94403.0,94384.0,0.01518]